[Event "Titled Tuesday Blitz April 19 Early 2022"]
[White "Fedoseev, Vladimir"]
[Black "Svane, Rasmus"]
[WhiteFideId "24130737"]
[BlackFideId "4657101"]
[WhiteElo "2726"]
[BlackElo "2645"]
[Result "1-0"]
[Round "05"]
[TimeControl "180+1"]
[Date "2022.04.19"]
[WhiteClock "0:00:10"]
[BlackClock "0:00:01"]

1. e4 {[%clk 0:03:00]}  c6 {[%clk 0:02:57]} 2. d4 {[%clk 0:02:59]}  d5 {[%clk 0:02:58]} 3. exd5 {[%clk 0:02:59]}  cxd5 {[%clk 0:02:59]} 4. Bd3 {[%clk 0:02:59]}  Nc6 {[%clk 0:02:59]} 5. c3 {[%clk 0:02:59]}  Nf6 {[%clk 0:02:59]} 6. Bf4 {[%clk 0:02:58]}  Bg4 {[%clk 0:02:59]} 7. Qb3 {[%clk 0:02:58]}  Qd7 {[%clk 0:02:59]} 8. Nd2 {[%clk 0:02:58]}  e6 {[%clk 0:03:00]} 9. h3 {[%clk 0:02:57]}  Bh5 {[%clk 0:02:59]} 10. Ngf3 {[%clk 0:02:58]}  Bd6 {[%clk 0:02:59]} 11. Bxd6 {[%clk 0:02:56]}  Qxd6 {[%clk 0:03:00]} 12. O-O {[%clk 0:02:55]}  O-O {[%clk 0:03:01]} 13. Rfe1 {[%clk 0:02:55]}  Qc7 {[%clk 0:02:55]} 14. a4 {[%clk 0:02:44]}  Rab8 {[%clk 0:02:52]} 15. Qa3 {[%clk 0:02:37]}  Bg6 {[%clk 0:02:38]} 16. Bxg6 {[%clk 0:02:31]}  hxg6 {[%clk 0:02:39]} 17. Re3 {[%clk 0:02:05]}  b6 {[%clk 0:02:33]} 18. Rae1 {[%clk 0:02:03]}  a6 {[%clk 0:02:33]} 19. Qa1 {[%clk 0:01:58]}  b5 {[%clk 0:02:30]} 20. axb5 {[%clk 0:01:52]}  axb5 {[%clk 0:02:31]} 21. b4 {[%clk 0:01:51]}  Ne7 {[%clk 0:02:27]} 22. Ne5 {[%clk 0:01:33]}  Nf5 {[%clk 0:02:25]} 23. Rf3 {[%clk 0:01:31]}  Nd6 {[%clk 0:02:21]} 24. Nb3 {[%clk 0:01:28]}  Ra8 {[%clk 0:02:17]} 25. Qb1 {[%clk 0:01:26]}  Ra3 {[%clk 0:02:14]} 26. Qb2 {[%clk 0:01:15]}  Ra4 {[%clk 0:01:32]} 27. Nc5 {[%clk 0:01:12]}  Ra7 {[%clk 0:01:31]} 28. Qe2 {[%clk 0:01:01]}  Rfa8 {[%clk 0:01:27]} 29. g4 {[%clk 0:00:34]}  Ra1 {[%clk 0:01:21]} 30. Kg2 {[%clk 0:00:33]}  R8a2 {[%clk 0:01:17]} 31. Qf1 {[%clk 0:00:32]}  Rxe1 {[%clk 0:01:15]} 32. Qxe1 {[%clk 0:00:33]}  g5 {[%clk 0:00:52]} 33. Qe3 {[%clk 0:00:31]}  Nfe4 {[%clk 0:00:49]} 34. h4 {[%clk 0:00:19]}  gxh4 {[%clk 0:00:23]} 35. Nxe4 {[%clk 0:00:18]}  dxe4 {[%clk 0:00:22]} 36. Rh3 {[%clk 0:00:18]}  Nc4 {[%clk 0:00:08]} 37. Nxc4 {[%clk 0:00:17]}  Qxc4 {[%clk 0:00:08]} 38. Qxe4 {[%clk 0:00:16]}  Ra1 {[%clk 0:00:09]} 39. Kh2 {[%clk 0:00:15]}  Qf1 {[%clk 0:00:04]} 40. Qg2 {[%clk 0:00:15]}  Qxg2+ {[%clk 0:00:04]} 41. Kxg2 {[%clk 0:00:14]}  g5 {[%clk 0:00:05]} 42. Re3 {[%clk 0:00:14]}  Rc1 {[%clk 0:00:03]} 43. Re5 {[%clk 0:00:15]}  Rxc3 {[%clk 0:00:03]} 44. Rxg5+ {[%clk 0:00:15]}  Kf8 {[%clk 0:00:03]} 45. Rxb5 {[%clk 0:00:15]}  Rc4 {[%clk 0:00:04]} 46. Kh3 {[%clk 0:00:13]}  Rxd4 {[%clk 0:00:04]} 47. Kxh4 {[%clk 0:00:13]}  Ke7 {[%clk 0:00:04]} 48. Rb7+ {[%clk 0:00:12]}  Kf6 {[%clk 0:00:04]} 49. b5 {[%clk 0:00:12]}  Rb4 {[%clk 0:00:04]} 50. b6 {[%clk 0:00:12]}  Kg6 {[%clk 0:00:04]} 51. Kg3 {[%clk 0:00:12]}  f5 {[%clk 0:00:04]} 52. gxf5+ {[%clk 0:00:12]}  exf5 {[%clk 0:00:03]} 53. Rb8 {[%clk 0:00:12]}  Kf7 {[%clk 0:00:03]} 54. b7 {[%clk 0:00:12]}  Kg7 {[%clk 0:00:04]} 55. Kf3 {[%clk 0:00:13]}  Kh7 {[%clk 0:00:02]} 56. Ke3 {[%clk 0:00:13]}  Kg7 {[%clk 0:00:02]} 57. Kd3 {[%clk 0:00:14]}  Kh7 {[%clk 0:00:02]} 58. Kc3 {[%clk 0:00:14]}  Rb1 {[%clk 0:00:02]} 59. Kd4 {[%clk 0:00:15]}  Kg7 {[%clk 0:00:02]} 60. Ke5 {[%clk 0:00:15]}  Rb5+ {[%clk 0:00:03]} 61. Ke6 {[%clk 0:00:14]}  Kh7 {[%clk 0:00:03]} 62. Kf6 {[%clk 0:00:15]}  f4 {[%clk 0:00:02]} 63. f3 {[%clk 0:00:14]}  Rb4 {[%clk 0:00:02]} 64. Kf5 {[%clk 0:00:10]}  Kg7 {[%clk 0:00:03]} 65. Kg5 {[%clk 0:00:10]}  Kh7 {[%clk 0:00:03]} 66. Kf6 {[%clk 0:00:10]}  Rb6+ {[%clk 0:00:03]} 67. Ke5 {[%clk 0:00:10]}  Rb4 {[%clk 0:00:04]} 68. Kd6 {[%clk 0:00:10]}  Kg7 {[%clk 0:00:03]} 69. Kc6 {[%clk 0:00:10]}  Rc4+ {[%clk 0:00:01]} 70. Kb5 {[%clk 0:00:10]}  Rc7 {[%clk 0:00:01]} 71. Kb6 {[%clk 0:00:10]}  Rc8 {[%clk 0:00:01]} 72. Rxc8 {[%clk 0:00:10]} 1-0


[Site "https://www.chess.com"]

[Event "Titled Tuesday Blitz April 19 Early 2022"]
[White "Fernandez Hernandez, Gerardo"]
[Black "Rodchenkov, Vitaly"]
[WhiteFideId "2207400"]
[BlackFideId "4152964"]
[WhiteElo "2076"]
[BlackElo "2337"]
[Result "0-1"]
[Round "05"]
[TimeControl "180+1"]
[Date "2022.04.19"]
[WhiteClock "0:00:01"]
[BlackClock "0:00:08"]

1. e4 {[%clk 0:03:00]}  c6 {[%clk 0:02:59]} 2. d4 {[%clk 0:03:00]}  d5 {[%clk 0:03:00]} 3. exd5 {[%clk 0:03:01]}  cxd5 {[%clk 0:03:01]} 4. c4 {[%clk 0:03:01]}  g6 {[%clk 0:03:00]} 5. Nc3 {[%clk 0:03:01]}  Nf6 {[%clk 0:03:01]} 6. Qb3 {[%clk 0:03:01]}  Bg7 {[%clk 0:03:02]} 7. cxd5 {[%clk 0:03:01]}  O-O {[%clk 0:03:02]} 8. Be2 {[%clk 0:03:01]}  Nbd7 {[%clk 0:03:02]} 9. Bf3 {[%clk 0:03:00]}  Nb6 {[%clk 0:03:02]} 10. Bf4 {[%clk 0:02:59]}  e6 {[%clk 0:03:01]} 11. d6 {[%clk 0:02:31]}  Nbd5 {[%clk 0:02:47]} 12. Be5 {[%clk 0:02:26]}  Ne8 {[%clk 0:02:30]} 13. Nxd5 {[%clk 0:02:19]}  exd5 {[%clk 0:02:27]} 14. Bxg7 {[%clk 0:02:11]}  Kxg7 {[%clk 0:02:26]} 15. Bxd5 {[%clk 0:02:05]}  Nxd6 {[%clk 0:02:23]} 16. Ne2 {[%clk 0:02:02]}  Qa5+ {[%clk 0:02:10]} 17. Nc3 {[%clk 0:01:53]}  Re8+ {[%clk 0:02:09]} 18. Kf1 {[%clk 0:01:47]}  Bf5 {[%clk 0:01:48]} 19. h3 {[%clk 0:01:20]}  Re7 {[%clk 0:01:35]} 20. Kg1 {[%clk 0:01:15]}  Rae8 {[%clk 0:01:32]} 21. Kh2 {[%clk 0:01:15]}  Qc7 {[%clk 0:01:32]} 22. Rhd1 {[%clk 0:00:52]}  Ne4+ {[%clk 0:01:12]} 23. Kg1 {[%clk 0:00:51]}  Ng5 {[%clk 0:01:06]} 24. h4 {[%clk 0:00:29]}  Ne6 {[%clk 0:01:01]} 25. Bf3 {[%clk 0:00:26]}  Nf4 {[%clk 0:00:54]} 26. Nd5 {[%clk 0:00:22]}  Nxd5 {[%clk 0:00:51]} 27. Qxd5 {[%clk 0:00:21]}  Qf4 {[%clk 0:00:44]} 28. g3 {[%clk 0:00:18]}  Qc7 {[%clk 0:00:40]} 29. Rac1 {[%clk 0:00:17]}  Qb6 {[%clk 0:00:31]} 30. Qb3 {[%clk 0:00:14]}  Qa6 {[%clk 0:00:18]} 31. d5 {[%clk 0:00:13]}  Rd7 {[%clk 0:00:14]} 32. Qc3+ {[%clk 0:00:11]}  f6 {[%clk 0:00:10]} 33. Qc4 {[%clk 0:00:10]}  Red8 {[%clk 0:00:10]} 34. Qxa6 {[%clk 0:00:10]}  bxa6 {[%clk 0:00:11]} 35. d6 {[%clk 0:00:09]}  Be6 {[%clk 0:00:11]} 36. b3 {[%clk 0:00:06]}  a5 {[%clk 0:00:10]} 37. Rc3 {[%clk 0:00:05]}  a4 {[%clk 0:00:10]} 38. bxa4 {[%clk 0:00:05]}  Bxa2 {[%clk 0:00:10]} 39. Rcd3 {[%clk 0:00:04]}  Bc4 {[%clk 0:00:09]} 40. R3d2 {[%clk 0:00:04]}  Bb3 {[%clk 0:00:10]} 41. Ra1 {[%clk 0:00:02]}  Rxd6 {[%clk 0:00:10]} 42. Rxd6 {[%clk 0:00:03]}  Rxd6 {[%clk 0:00:11]} 43. a5 {[%clk 0:00:03]}  Bd5 {[%clk 0:00:09]} 44. Bxd5 {[%clk 0:00:01]}  Rxd5 {[%clk 0:00:10]} 45. a6 {[%clk 0:00:02]}  Rd6 {[%clk 0:00:10]} 46. Kf1 {[%clk 0:00:02]}  Kf7 {[%clk 0:00:10]} 47. Ke2 {[%clk 0:00:03]}  Ke7 {[%clk 0:00:10]} 48. Ke3 {[%clk 0:00:03]}  Kd7 {[%clk 0:00:10]} 49. Ke4 {[%clk 0:00:03]}  Kc6 {[%clk 0:00:08]} 50. h5 {[%clk 0:00:01]}  Kb6 {[%clk 0:00:08]} 0-1


[Site "https://www.chess.com"]

[Event "Titled Tuesday Blitz April 19 Early 2022"]
[White "Fromm, Marius"]
[Black "Ardila, Oscar Humberto"]
[WhiteFideId "12993190"]
[BlackFideId "4404742"]
[WhiteElo "2489"]
[BlackElo "1983"]
[Result "1-0"]
[Round "05"]
[TimeControl "180+1"]
[Date "2022.04.19"]
[WhiteClock "0:00:36"]
[BlackClock "0:00:18"]

1. e4 {[%clk 0:03:00]}  e5 {[%clk 0:02:59]} 2. Nf3 {[%clk 0:03:01]}  Nf6 {[%clk 0:03:00]} 3. Nxe5 {[%clk 0:03:01]}  d6 {[%clk 0:03:00]} 4. Nf3 {[%clk 0:03:01]}  Nxe4 {[%clk 0:03:00]} 5. d4 {[%clk 0:03:02]}  Be7 {[%clk 0:02:59]} 6. Bd3 {[%clk 0:03:02]}  d5 {[%clk 0:02:59]} 7. O-O {[%clk 0:03:02]}  Nc6 {[%clk 0:02:59]} 8. Nbd2 {[%clk 0:02:59]}  Nf6 {[%clk 0:02:53]} 9. c3 {[%clk 0:02:57]}  O-O {[%clk 0:02:53]} 10. Re1 {[%clk 0:02:57]}  Bg4 {[%clk 0:02:53]} 11. h3 {[%clk 0:02:57]}  Bh5 {[%clk 0:02:52]} 12. Nf1 {[%clk 0:02:56]}  Re8 {[%clk 0:02:51]} 13. Bg5 {[%clk 0:02:54]}  Qd7 {[%clk 0:02:46]} 14. Ng3 {[%clk 0:02:44]}  Bg6 {[%clk 0:02:46]} 15. Bb5 {[%clk 0:02:43]}  Ne4 {[%clk 0:02:00]} 16. Ne5 {[%clk 0:02:40]}  Qe6 {[%clk 0:01:47]} 17. Bxe7 {[%clk 0:02:35]}  Rxe7 {[%clk 0:01:43]} 18. Nxe4 {[%clk 0:01:20]}  Bxe4 {[%clk 0:01:17]} 19. Bxc6 {[%clk 0:01:18]}  bxc6 {[%clk 0:01:17]} 20. f3 {[%clk 0:01:18]}  f6 {[%clk 0:01:13]} 21. Ng4 {[%clk 0:01:11]}  h5 {[%clk 0:01:05]} 22. Nf2 {[%clk 0:01:08]}  f5 {[%clk 0:00:49]} 23. fxe4 {[%clk 0:01:08]}  dxe4 {[%clk 0:00:48]} 24. Qxh5 {[%clk 0:01:08]}  g6 {[%clk 0:00:48]} 25. Qg5 {[%clk 0:01:08]}  Rb8 {[%clk 0:00:44]} 26. b4 {[%clk 0:01:07]}  Rh7 {[%clk 0:00:40]} 27. Re3 {[%clk 0:01:01]}  Rh5 {[%clk 0:00:39]} 28. Qf4 {[%clk 0:01:01]}  Qd7 {[%clk 0:00:31]} 29. g4 {[%clk 0:00:56]}  Rh7 {[%clk 0:00:30]} 30. gxf5 {[%clk 0:00:53]}  gxf5 {[%clk 0:00:30]} 31. Rg3+ {[%clk 0:00:48]}  Kh8 {[%clk 0:00:26]} 32. Qe5+ {[%clk 0:00:47]}  Rg7 {[%clk 0:00:26]} 33. Kh2 {[%clk 0:00:41]}  Rg8 {[%clk 0:00:17]} 34. Rag1 {[%clk 0:00:41]}  Kh7 {[%clk 0:00:16]} 35. Rxg7+ {[%clk 0:00:40]}  Rxg7 {[%clk 0:00:17]} 36. Rxg7+ {[%clk 0:00:40]}  Qxg7 {[%clk 0:00:17]} 37. Qxg7+ {[%clk 0:00:35]}  Kxg7 {[%clk 0:00:17]} 38. Kg3 {[%clk 0:00:36]}  Kf6 {[%clk 0:00:18]} 39. Kf4 {[%clk 0:00:36]}  Ke6 {[%clk 0:00:18]} 40. Nd1 {[%clk 0:00:36]}  Kf6 {[%clk 0:00:18]} 41. Ne3 {[%clk 0:00:36]} 1-0


[Site "https://www.chess.com"]

[Event "Titled Tuesday Blitz April 19 Early 2022"]
[White "Gabrielian, Artur"]
[Black "Le, Tuan Minh"]
[WhiteFideId "4131002"]
[BlackFideId "12401153"]
[WhiteElo "2440"]
[BlackElo "2450"]
[Result "0-1"]
[Round "05"]
[TimeControl "180+1"]
[Date "2022.04.19"]
[WhiteClock "0:00:04"]
[BlackClock "0:00:50"]

1. c4 {[%clk 0:03:00]}  c6 {[%clk 0:02:59]} 2. Nf3 {[%clk 0:03:00]}  d5 {[%clk 0:02:59]} 3. e3 {[%clk 0:03:00]}  Nf6 {[%clk 0:03:00]} 4. Nc3 {[%clk 0:02:58]}  a6 {[%clk 0:03:00]} 5. b3 {[%clk 0:02:57]}  Bg4 {[%clk 0:02:59]} 6. h3 {[%clk 0:02:54]}  Bh5 {[%clk 0:02:59]} 7. Bb2 {[%clk 0:02:52]}  e6 {[%clk 0:02:56]} 8. Be2 {[%clk 0:02:51]}  Nbd7 {[%clk 0:02:55]} 9. O-O {[%clk 0:02:50]}  Bd6 {[%clk 0:02:55]} 10. cxd5 {[%clk 0:02:43]}  exd5 {[%clk 0:02:50]} 11. Nd4 {[%clk 0:02:42]}  Bg6 {[%clk 0:02:49]} 12. f4 {[%clk 0:02:39]}  h6 {[%clk 0:02:50]} 13. f5 {[%clk 0:02:29]}  Bh7 {[%clk 0:02:50]} 14. Qe1 {[%clk 0:01:35]}  Qe7 {[%clk 0:02:42]} 15. Qh4 {[%clk 0:01:32]}  Qe5 {[%clk 0:02:26]} 16. Rf4 {[%clk 0:01:10]}  c5 {[%clk 0:02:12]} 17. Nf3 {[%clk 0:01:03]}  Qe7 {[%clk 0:02:12]} 18. Ra4 {[%clk 0:00:36]}  O-O {[%clk 0:01:52]} 19. Rf1 {[%clk 0:00:35]}  b5 {[%clk 0:01:49]} 20. Rf4 {[%clk 0:00:19]}  Bxf4 {[%clk 0:01:49]} 21. Qxf4 {[%clk 0:00:20]}  Rfe8 {[%clk 0:01:48]} 22. Qg3 {[%clk 0:00:16]}  d4 {[%clk 0:01:40]} 23. exd4 {[%clk 0:00:16]}  b4 {[%clk 0:01:40]} 24. dxc5 {[%clk 0:00:12]}  bxc3 {[%clk 0:01:40]} 25. Bxc3 {[%clk 0:00:12]}  Qxc5+ {[%clk 0:01:35]} 26. Bd4 {[%clk 0:00:11]}  Qxf5 {[%clk 0:01:32]} 27. Bc4 {[%clk 0:00:11]}  Qg6 {[%clk 0:01:28]} 28. Qc7 {[%clk 0:00:10]}  Rac8 {[%clk 0:01:17]} 29. Qa7 {[%clk 0:00:10]}  Qh5 {[%clk 0:01:01]} 30. Qxa6 {[%clk 0:00:10]}  Be4 {[%clk 0:00:58]} 31. Qa7 {[%clk 0:00:10]}  Ra8 {[%clk 0:00:57]} 32. Qc7 {[%clk 0:00:09]}  Bd5 {[%clk 0:00:55]} 33. Bxd5 {[%clk 0:00:09]}  Qxd5 {[%clk 0:00:56]} 34. Qc2 {[%clk 0:00:06]}  Ne4 {[%clk 0:00:53]} 35. Be3 {[%clk 0:00:06]}  Ndf6 {[%clk 0:00:52]} 36. Nd4 {[%clk 0:00:05]}  Rad8 {[%clk 0:00:51]} 37. Qb2 {[%clk 0:00:04]}  Qe5 {[%clk 0:00:51]} 38. Qa3 {[%clk 0:00:04]}  Rxd4 {[%clk 0:00:50]} 0-1


[Site "https://www.chess.com"]

[Event "Titled Tuesday Blitz April 19 Early 2022"]
[White "Gatterer, Florian"]
[Black "Shohat, Yotam"]
[WhiteFideId "811688"]
[BlackFideId "2813955"]
[WhiteElo "2218"]
[BlackElo "2119"]
[Result "0-1"]
[Round "05"]
[TimeControl "180+1"]
[Date "2022.04.19"]
[WhiteClock "0:00:05"]
[BlackClock "0:00:03"]

1. f4 {[%clk 0:03:00]}  e5 {[%clk 0:02:59]} 2. fxe5 {[%clk 0:02:58]}  d6 {[%clk 0:02:59]} 3. Nf3 {[%clk 0:02:57]}  dxe5 {[%clk 0:02:51]} 4. e4 {[%clk 0:02:54]}  Nf6 {[%clk 0:02:51]} 5. Nc3 {[%clk 0:02:51]}  Bc5 {[%clk 0:02:50]} 6. Bb5+ {[%clk 0:02:44]}  Bd7 {[%clk 0:02:43]} 7. Bxd7+ {[%clk 0:02:44]}  Qxd7 {[%clk 0:02:31]} 8. d3 {[%clk 0:02:44]}  Nc6 {[%clk 0:02:30]} 9. Bg5 {[%clk 0:02:23]}  O-O-O {[%clk 0:02:29]} 10. Bxf6 {[%clk 0:02:11]}  gxf6 {[%clk 0:02:30]} 11. Qe2 {[%clk 0:02:04]}  Nd4 {[%clk 0:02:06]} 12. Nxd4 {[%clk 0:01:57]}  Bxd4 {[%clk 0:02:07]} 13. O-O-O {[%clk 0:01:47]}  Bxc3 {[%clk 0:01:56]} 14. bxc3 {[%clk 0:01:46]}  Qa4 {[%clk 0:01:56]} 15. Kd2 {[%clk 0:01:29]}  f5 {[%clk 0:01:48]} 16. Rde1 {[%clk 0:01:03]}  f4 {[%clk 0:01:01]} 17. Rb1 {[%clk 0:00:57]}  Rxd3+ {[%clk 0:00:40]} 18. Qxd3 {[%clk 0:00:37]}  Rd8 {[%clk 0:00:39]} 19. Rb2 {[%clk 0:00:36]}  Qxe4 {[%clk 0:00:35]} 20. Re1 {[%clk 0:00:31]}  Qxg2+ {[%clk 0:00:28]} 21. Re2 {[%clk 0:00:31]}  Rxd3+ {[%clk 0:00:27]} 22. cxd3 {[%clk 0:00:29]}  Qd5 {[%clk 0:00:25]} 23. a4 {[%clk 0:00:23]}  f5 {[%clk 0:00:19]} 24. Rb5 {[%clk 0:00:19]}  c5 {[%clk 0:00:17]} 25. Rb2 {[%clk 0:00:17]}  e4 {[%clk 0:00:15]} 26. Ke1 {[%clk 0:00:16]}  Qxd3 {[%clk 0:00:13]} 27. Red2 {[%clk 0:00:14]}  Qe3+ {[%clk 0:00:12]} 28. Re2 {[%clk 0:00:13]}  Qxc3+ {[%clk 0:00:12]} 29. Kf2 {[%clk 0:00:12]}  Qd4+ {[%clk 0:00:11]} 30. Kf1 {[%clk 0:00:11]}  f3 {[%clk 0:00:08]} 31. Red2 {[%clk 0:00:11]}  Qc4+ {[%clk 0:00:08]} 32. Kf2 {[%clk 0:00:11]}  Qxa4 {[%clk 0:00:05]} 33. Rbc2 {[%clk 0:00:11]}  b6 {[%clk 0:00:05]} 34. Rc3 {[%clk 0:00:10]}  Qc6 {[%clk 0:00:05]} 35. Rc1 {[%clk 0:00:07]}  Qh6 {[%clk 0:00:05]} 36. Rdd1 {[%clk 0:00:04]}  Qxh2+ {[%clk 0:00:04]} 37. Ke3 {[%clk 0:00:05]}  Qe2+ {[%clk 0:00:04]} 38. Kf4 {[%clk 0:00:05]}  f2 {[%clk 0:00:04]} 39. Ke5 {[%clk 0:00:05]}  e3 {[%clk 0:00:03]} 40. Ke6 {[%clk 0:00:06]}  Qxd1 {[%clk 0:00:03]} 41. Rxd1 {[%clk 0:00:05]}  e2 {[%clk 0:00:04]} 42. Rd6 {[%clk 0:00:05]}  e1=Q+ {[%clk 0:00:05]} 43. Kf7 {[%clk 0:00:06]}  f1=Q {[%clk 0:00:05]} 44. Rc6+ {[%clk 0:00:06]}  Kb7 {[%clk 0:00:05]} 45. Rc7+ {[%clk 0:00:06]}  Kxc7 {[%clk 0:00:05]} 46. Kf6 {[%clk 0:00:07]}  Qc4 {[%clk 0:00:04]} 47. Kg7 {[%clk 0:00:06]}  Qe7+ {[%clk 0:00:04]} 48. Kh6 {[%clk 0:00:05]}  Qch4# {[%clk 0:00:03]} 0-1


[Site "https://www.chess.com"]

[Event "Titled Tuesday Blitz April 19 Early 2022"]
[White "Guz, Ari"]
[Black "Lysyj, Igor"]
[WhiteFideId "2825759"]
[BlackFideId "4150120"]
[WhiteElo "1913"]
[BlackElo "2611"]
[Result "0-1"]
[Round "05"]
[TimeControl "180+1"]
[Date "2022.04.19"]
[WhiteClock "0:00:40"]
[BlackClock "0:01:21"]

1. e4 {[%clk 0:03:00]}  e5 {[%clk 0:02:59]} 2. Nf3 {[%clk 0:03:01]}  Nc6 {[%clk 0:02:59]} 3. Bc4 {[%clk 0:03:01]}  Bc5 {[%clk 0:02:59]} 4. c3 {[%clk 0:03:02]}  Nf6 {[%clk 0:02:57]} 5. d4 {[%clk 0:03:02]}  exd4 {[%clk 0:02:57]} 6. cxd4 {[%clk 0:03:03]}  Bb4+ {[%clk 0:02:56]} 7. Nc3 {[%clk 0:03:04]}  Nxe4 {[%clk 0:02:49]} 8. O-O {[%clk 0:03:04]}  Bxc3 {[%clk 0:02:44]} 9. d5 {[%clk 0:03:05]}  Ne5 {[%clk 0:02:41]} 10. bxc3 {[%clk 0:03:03]}  Nxc4 {[%clk 0:02:34]} 11. Qd4 {[%clk 0:03:04]}  O-O {[%clk 0:02:32]} 12. Qxe4 {[%clk 0:03:02]}  Nd6 {[%clk 0:02:28]} 13. Qf4 {[%clk 0:02:59]}  b6 {[%clk 0:02:24]} 14. Be3 {[%clk 0:02:57]}  Re8 {[%clk 0:02:17]} 15. Bd4 {[%clk 0:02:55]}  Ba6 {[%clk 0:02:15]} 16. Rfe1 {[%clk 0:02:55]}  Rxe1+ {[%clk 0:02:13]} 17. Rxe1 {[%clk 0:02:55]}  Qf8 {[%clk 0:02:14]} 18. Ne5 {[%clk 0:02:46]}  Re8 {[%clk 0:02:12]} 19. Re3 {[%clk 0:02:46]}  f6 {[%clk 0:02:07]} 20. Ng4 {[%clk 0:02:07]}  Rxe3 {[%clk 0:02:05]} 21. Nxe3 {[%clk 0:02:06]}  Qe7 {[%clk 0:02:03]} 22. h4 {[%clk 0:01:58]}  Bd3 {[%clk 0:01:59]} 23. h5 {[%clk 0:01:46]}  h6 {[%clk 0:01:58]} 24. f3 {[%clk 0:01:39]}  Ne8 {[%clk 0:01:45]} 25. Kf2 {[%clk 0:01:17]}  Qf7 {[%clk 0:01:42]} 26. g4 {[%clk 0:01:11]}  Nd6 {[%clk 0:01:38]} 27. Kg3 {[%clk 0:01:03]}  Bb1 {[%clk 0:01:32]} 28. a3 {[%clk 0:01:00]}  Ba2 {[%clk 0:01:32]} 29. c4 {[%clk 0:00:54]}  Bxc4 {[%clk 0:01:22]} 30. Nxc4 {[%clk 0:00:40]}  Nxc4 {[%clk 0:01:22]} 31. Qxc7 {[%clk 0:00:40]}  Qxd5 {[%clk 0:01:22]} 32. Bc3 {[%clk 0:00:40]}  Qd6+ {[%clk 0:01:21]} 0-1


[Site "https://www.chess.com"]

[Event "Titled Tuesday Blitz April 19 Early 2022"]
[White "Harish, Neeraj"]
[Black "Avazkhonov, Alikhon"]
[WhiteFideId "30958130"]
[BlackFideId "14208504"]
[WhiteElo "1574"]
[BlackElo "1739"]
[Result "0-1"]
[Round "05"]
[TimeControl "180+1"]
[Date "2022.04.19"]
[WhiteClock "0:00:11"]
[BlackClock "0:00:04"]

1. e4 {[%clk 0:03:00]}  c5 {[%clk 0:02:55]} 2. Nf3 {[%clk 0:02:54]}  d6 {[%clk 0:02:56]} 3. d4 {[%clk 0:02:48]}  cxd4 {[%clk 0:02:57]} 4. Nxd4 {[%clk 0:02:48]}  Nf6 {[%clk 0:02:57]} 5. Nc3 {[%clk 0:02:48]}  a6 {[%clk 0:02:58]} 6. h4 {[%clk 0:02:44]}  e5 {[%clk 0:02:56]} 7. Nb3 {[%clk 0:02:43]}  Be6 {[%clk 0:02:56]} 8. Be2 {[%clk 0:02:35]}  Nbd7 {[%clk 0:02:55]} 9. f4 {[%clk 0:02:22]}  b5 {[%clk 0:02:45]} 10. f5 {[%clk 0:02:16]}  Bc4 {[%clk 0:02:45]} 11. Bg5 {[%clk 0:01:54]}  h6 {[%clk 0:02:39]} 12. Bxf6 {[%clk 0:01:33]}  Nxf6 {[%clk 0:02:40]} 13. Bxc4 {[%clk 0:01:32]}  bxc4 {[%clk 0:02:38]} 14. Nd2 {[%clk 0:01:32]}  Rc8 {[%clk 0:01:33]} 15. Qe2 {[%clk 0:01:16]}  Qb6 {[%clk 0:01:19]} 16. O-O-O {[%clk 0:00:42]}  Qc5 {[%clk 0:00:48]} 17. g4 {[%clk 0:00:30]}  h5 {[%clk 0:00:40]} 18. g5 {[%clk 0:00:19]}  Ng4 {[%clk 0:00:39]} 19. Rdf1 {[%clk 0:00:13]}  Be7 {[%clk 0:00:14]} 20. f6 {[%clk 0:00:11]}  gxf6 {[%clk 0:00:11]} 21. gxf6 {[%clk 0:00:12]}  Bxf6 {[%clk 0:00:06]} 22. Nd5 {[%clk 0:00:11]}  c3 {[%clk 0:00:06]} 23. Nxf6+ {[%clk 0:00:11]}  Nxf6 {[%clk 0:00:06]} 24. Rxf6 {[%clk 0:00:12]}  cxd2+ {[%clk 0:00:06]} 25. Qxd2 {[%clk 0:00:13]}  Ke7 {[%clk 0:00:05]} 26. Rhf1 {[%clk 0:00:13]}  Rh7 {[%clk 0:00:04]} 27. Qg5 {[%clk 0:00:11]}  Qxc2# {[%clk 0:00:04]} 0-1


[Site "https://www.chess.com"]

[Event "Titled Tuesday Blitz April 19 Early 2022"]
[White "Hasangatin, Ramil"]
[Black "Sanal, Vahap"]
[WhiteFideId "4122160"]
[BlackFideId "6300545"]
[WhiteElo "2375"]
[BlackElo "2603"]
[Result "1-0"]
[Round "05"]
[TimeControl "180+1"]
[Date "2022.04.19"]
[WhiteClock "0:00:18"]
[BlackClock "0:00:15"]

1. e4 {[%clk 0:02:56]}  d6 {[%clk 0:02:58]} 2. d4 {[%clk 0:02:56]}  Nf6 {[%clk 0:02:59]} 3. Nc3 {[%clk 0:02:56]}  e5 {[%clk 0:02:59]} 4. dxe5 {[%clk 0:02:57]}  dxe5 {[%clk 0:02:59]} 5. Qxd8+ {[%clk 0:02:58]}  Kxd8 {[%clk 0:03:00]} 6. Bc4 {[%clk 0:02:58]}  Ke8 {[%clk 0:02:59]} 7. Nf3 {[%clk 0:02:58]}  Bd6 {[%clk 0:02:59]} 8. Bg5 {[%clk 0:02:58]}  Nbd7 {[%clk 0:02:58]} 9. O-O {[%clk 0:02:59]}  a6 {[%clk 0:02:58]} 10. a4 {[%clk 0:02:59]}  h6 {[%clk 0:02:57]} 11. Bh4 {[%clk 0:02:57]}  g5 {[%clk 0:02:53]} 12. Bg3 {[%clk 0:02:57]}  Nh5 {[%clk 0:02:53]} 13. Rfd1 {[%clk 0:02:46]}  Nf4 {[%clk 0:02:40]} 14. Nd2 {[%clk 0:02:41]}  h5 {[%clk 0:02:37]} 15. f3 {[%clk 0:02:35]}  Bc5+ {[%clk 0:02:31]} 16. Bf2 {[%clk 0:02:31]}  c6 {[%clk 0:02:27]} 17. a5 {[%clk 0:02:27]}  Ke7 {[%clk 0:02:26]} 18. Nf1 {[%clk 0:02:10]}  Bxf2+ {[%clk 0:02:22]} 19. Kxf2 {[%clk 0:02:10]}  Nc5 {[%clk 0:02:23]} 20. Ne3 {[%clk 0:02:03]}  Be6 {[%clk 0:02:22]} 21. Na4 {[%clk 0:01:46]}  Nxa4 {[%clk 0:02:15]} 22. Rxa4 {[%clk 0:01:46]}  Rhd8 {[%clk 0:02:15]} 23. Raa1 {[%clk 0:01:16]}  Rd4 {[%clk 0:02:09]} 24. Bxe6 {[%clk 0:01:14]}  fxe6 {[%clk 0:02:08]} 25. g3 {[%clk 0:01:07]}  Ng6 {[%clk 0:02:08]} 26. c3 {[%clk 0:01:02]}  Rxd1 {[%clk 0:02:05]} 27. Rxd1 {[%clk 0:01:03]}  h4 {[%clk 0:02:05]} 28. Nc4 {[%clk 0:01:02]}  Rh8 {[%clk 0:02:04]} 29. Kg2 {[%clk 0:01:01]}  Rf8 {[%clk 0:01:30]} 30. Nb6 {[%clk 0:00:57]}  hxg3 {[%clk 0:00:48]} 31. hxg3 {[%clk 0:00:56]}  Rh8 {[%clk 0:00:36]} 32. Rd7+ {[%clk 0:00:53]}  Kf6 {[%clk 0:00:36]} 33. Rxb7 {[%clk 0:00:51]}  g4 {[%clk 0:00:36]} 34. fxg4 {[%clk 0:00:36]}  Kg5 {[%clk 0:00:37]} 35. Nc4 {[%clk 0:00:36]}  Rd8 {[%clk 0:00:34]} 36. Rg7 {[%clk 0:00:32]}  Kf6 {[%clk 0:00:30]} 37. Ra7 {[%clk 0:00:29]}  Rd3 {[%clk 0:00:27]} 38. Rxa6 {[%clk 0:00:27]}  Kg5 {[%clk 0:00:27]} 39. Rxc6 {[%clk 0:00:25]}  Kxg4 {[%clk 0:00:27]} 40. Rxe6 {[%clk 0:00:24]}  Rxg3+ {[%clk 0:00:27]} 41. Kf2 {[%clk 0:00:25]}  Rf3+ {[%clk 0:00:28]} 42. Ke1 {[%clk 0:00:24]}  Rh3 {[%clk 0:00:17]} 43. Rxg6+ {[%clk 0:00:23]}  Kf4 {[%clk 0:00:18]} 44. Rg2 {[%clk 0:00:19]}  Kxe4 {[%clk 0:00:17]} 45. a6 {[%clk 0:00:19]}  Rh1+ {[%clk 0:00:17]} 46. Kd2 {[%clk 0:00:19]}  Ra1 {[%clk 0:00:18]} 47. Rg6 {[%clk 0:00:19]}  Kf5 {[%clk 0:00:15]} 48. Rb6 {[%clk 0:00:18]}  e4 {[%clk 0:00:16]} 49. Na3 {[%clk 0:00:18]}  Kf4 {[%clk 0:00:16]} 50. a7 {[%clk 0:00:18]}  Rh1 {[%clk 0:00:15]} 51. a8=Q {[%clk 0:00:17]}  Rh2+ {[%clk 0:00:15]} 52. Kc1 {[%clk 0:00:18]} 1-0


[Site "https://www.chess.com"]